bitfinex-derivatives/quotes_BTCF0:USTF0_20250315
["timestamp","ask_amount","ask_price","bid_price","bid_amount"]
[1742028130003,0.1190395,84004.0,84003.0,0.0322]
[1742028130189,0.3330451,84004.0,84003.0,0.0322]
[1742028130390,0.3330451,84004.0,84003.0,0.3912409]
[1742028130798,0.3936451,84004.0,84003.0,0.4218409]
[1742028137193,0.1493395,84004.0,84003.0,0.4218409]
[1742028137513,0.1190395,84004.0,84003.0,0.4218409]
[1742028137705,0.1785427,84016.0,84015.0,0.1190239]
[1742028137995,0.1785427,84016.0,84015.0,0.3490239]
[1742028138501,0.2112427,84016.0,84015.0,0.36109072]
[1742028138999,0.2112427,84016.0,84015.0,0.42329072]
[1742028139196,0.2112427,84016.0,84015.0,0.30426682]
[1742028139496,0.2112427,84016.0,84015.0,0.07426682]
[1742028139497,0.4252483,84016.0,84015.0,0.07426682]
[1742028139799,0.4886483,84016.0,84015.0,0.07426682]
[1742028140000,0.4886483,84016.0,84015.0,0.1812239]
[1742028140300,0.4886483,84016.0,84015.0,0.19328702]
[1742028141293,0.4886483,84016.0,84015.0,0.1812239]
[1742028141694,0.4886483,84016.0,84015.0,0.0622]
[1742028142001,0.1190296,84011.0,84010.0,0.11544]
[1742028142197,0.1190395,84004.0,84003.0,0.01233274]
[1742028142400,0.1190395,84004.0,84003.0,0.3190375]
[1742028142606,0.1190395,84004.0,84003.0,0.45008054]
[1742028143099,0.1190377,84006.0,84005.0,0.1785557]
[1742028143299,0.1190377,84006.0,84005.0,0.6885557]
[1742028143899,0.1190377,84006.0,84005.0,0.7187557]
[1742028145406,0.1190377,84006.0,84005.0,0.4787557]
[1742028146411,0.1190377,84006.0,84005.0,0.5941557]
[1742028148711,0.1785522,84008.0,84007.0,0.1190353]
[1742028149010,0.1190235,84016.0,84015.0,0.1190225]
[1742028149198,0.1190235,84016.0,84015.0,0.3890225]
[1742028150005,0.1190235,84016.0,84015.0,0.8990225]
[1742028150192,0.1190235,84016.0,84015.0,0.4197225]
[1742028153302,0.1190235,84016.0,84015.0,0.6597225]
[1742028153508,0.1190235,84016.0,84015.0,0.4197225]
[1742028154013,0.1523235,84016.0,84015.0,0.4197225]
[1742028154309,0.3663291,84016.0,84015.0,0.0307]
[1742028154498,0.3995291,84016.0,84015.0,0.0307]
[1742028154812,0.4324291,84016.0,84015.0,0.0307]
[1742028155304,0.1190353,84008.0,84006.0,0.1190363]
[1742028155510,0.1190353,84008.0,84006.0,0.3790367]
[1742028155511,0.2756536,84007.0,84006.0,0.3790367]
[1742028157108,0.2435536,84007.0,84006.0,0.3790367]
[1742028158111,0.0595183,84007.0,84006.0,0.3790367]
[1742028159100,0.0595183,84007.0,84006.0,0.4097367]
[1742028161719,0.0595183,84007.0,84006.0,0.6297367]
[1742028162121,0.0595183,84007.0,84006.0,0.8497367]
[1742028162417,0.031,84016.0,84006.0,0.7507]
[1742028162718,0.11920001,84017.0,84014.0,0.1190253]
[1742028163016,0.11920001,84017.0,84014.0,0.3590253]
[1742028163607,0.05968881,84017.0,84014.0,0.4219253]
[1742028163820,0.11920001,84017.0,84014.0,0.4219253]
[1742028166227,0.05968881,84017.0,84014.0,0.8819253]
[1742028166624,0.0595112,84016.0,84014.0,0.8819253]
[1742028167020,0.05968881,84017.0,84014.0,0.8819253]
[1742028167213,0.05968881,84017.0,84016.0,0.1190225]
[1742028167413,0.00017821,84017.0,84016.0,0.6090225]
[1742028167621,0.00017821,84017.0,84016.0,0.6715225]
[1742028168718,0.11919931,84017.0,84016.0,0.6715225]
[1742028170117,0.00017821,84017.0,84016.0,0.8915225]
[1742028171425,0.1511084,84026.0,84025.0,0.1190098]
[1742028171626,0.1511084,84026.0,84025.0,0.8558098]
[1742028171827,0.396714,84026.0,84025.0,0.8558098]
[1742028172022,0.396714,84026.0,84025.0,0.4950098]
[1742028173426,0.1511084,84026.0,84025.0,0.9450098]
[1742028173725,0.1190084,84026.0,84025.0,0.9450098]
[1742028173929,0.0594982,84035.0,84025.0,0.9450098]
[1742028173930,0.0625,84036.0,84035.0,0.1189956]
[1742028174225,0.12485946,84042.0,84035.0,0.1189956]
[1742028174226,0.12485946,84042.0,84035.0,1.46217526]
[1742028174426,0.0594846,84055.0,84054.0,0.1189659]
[1742028174631,0.1189715,84052.0,84051.0,0.3608]
[1742028174818,0.1189914,84038.0,84035.0,0.02137526]
[1742028175033,0.332997,84038.0,84037.0,0.7497928]
[1742028175832,0.1189863,84042.0,84041.0,0.1189843]
[1742028176029,0.1189863,84042.0,84041.0,0.3589843]
[1742028176329,0.3329919,84042.0,84041.0,0.3589843]
[1742028179232,0.3329919,84042.0,84041.0,0.1189843]
[1742028179434,0.34387533,84042.0,84041.0,0.1189843]
[1742028180039,0.34387529,84042.0,84041.0,0.1189843]
[1742028181829,0.34387529,84042.0,84041.0,0.3389843]
[1742028184735,0.34387529,84042.0,84040.0,0.059494]
[1742028184736,0.1189914,84038.0,84037.0,0.3608]
[1742028185038,0.1189914,84038.0,84037.0,0.6308]
[1742028185039,0.34388039,84038.0,84037.0,0.6308]
[1742028185334,0.0594988,84034.0,84030.0,0.1190016]
[1742028185539,0.1190013,84031.0,84030.0,0.3118021]
[1742028185738,0.3330069,84031.0,84030.0,0.3118021]
[1742028185939,0.3330069,84031.0,84030.0,0.1928]
[1742028186133,0.3330069,84031.0,84030.0,0.32397098]
[1742028186442,0.3330069,84031.0,84030.0,0.16397098]
[1742028187330,0.3330069,84031.0,84030.0,0.16597098]
[1742028187525,0.3330069,84031.0,84030.0,0.0348]
[1742028187742,0.3330069,84031.0,84030.0,0.003]
[1742028188236,0.34522653,84031.0,84030.0,0.002]
[1742028188741,0.1190268,84013.0,84012.0,0.39284267]
[1742028188935,0.3330324,84013.0,84012.0,0.67284267]
[1742028189134,0.3330324,84013.0,84012.0,0.4585382]
[1742028189325,0.3330324,84013.0,84012.0,0.4906382]
[1742028189531,0.3330324,84013.0,84012.0,0.5501508]
[1742028189731,0.1190268,84013.0,84012.0,0.56263692]
[1742028189933,0.1190268,84013.0,84012.0,1.01263692]
[1742028191030,0.1190268,84013.0,84012.0,0.56263692]
[1742028191838,0.1837268,84013.0,84012.0,0.56263692]
[1742028192943,0.1519268,84013.0,84012.0,0.56263692]
[1742028193244,0.1519268,84013.0,84012.0,0.83263692]
[1742028198037,0.1519268,84013.0,84012.0,0.56263692]
[1742028198839,0.1519268,84013.0,84012.0,0.44361122]
[1742028199947,0.3659324,84013.0,84012.0,0.44361122]
[1742028200148,0.3659324,84013.0,84012.0,0.04458612]
[1742028200339,0.3982324,84013.0,84012.0,0.16361432]
[1742028200549,0.3982324,84013.0,84012.0,0.1511282]
[1742028203246,0.3982324,84013.0,84012.0,0.2511282]
[1742028204846,0.3982324,84013.0,84012.0,0.2836282]
[1742028206346,0.3982324,84013.0,84012.0,0.4136282]
[1742028209641,0.3659324,84013.0,84012.0,0.4136282]
[1742028210052,0.3959324,84013.0,84012.0,0.4136282]
[1742028210253,0.3659324,84013.0,84012.0,0.4136282]
[1742028210953,0.3330324,84013.0,84012.0,0.6836282]
[1742028211152,0.1190268,84013.0,84012.0,0.7744282]
[1742028211359,0.1190268,84013.0,84012.0,0.9744282]
[1742028213061,0.1190268,84013.0,84012.0,0.7744282]
[1742028213362,0.1190251,84015.0,84014.0,0.1785365]
[1742028213661,0.1190251,84015.0,84014.0,0.4685365]
[1742028215660,0.1200251,84015.0,84014.0,0.4685365]
[1742028219555,0.1507251,84015.0,84014.0,0.4685365]
[1742028220154,0.3647307,84015.0,84014.0,0.4685365]
[1742028220354,0.3977307,84015.0,84014.0,0.4685365]
[1742028221763,0.4280307,84015.0,84014.0,0.4685365]
[1742028223067,0.4280307,84015.0,84014.0,0.0595126]
[1742028224266,0.0595127,84014.0,84012.0,0.3608]
[1742028224467,0.3330324,84013.0,84012.0,0.6108]
[1742028224659,0.3947324,84013.0,84012.0,0.6108]
[1742028224963,0.3947324,84013.0,84012.0,0.7607282]
[1742028227067,0.3632324,84013.0,84012.0,0.7607282]
[1742028228869,0.37429775,84013.0,84012.0,0.7607282]
[1742028229067,0.37429775,84013.0,84012.0,0.7908282]
[1742028229567,0.3632324,84013.0,84012.0,0.7908282]
[1742028230366,0.13026208,84013.0,84012.0,0.7908282]
[1742028230669,0.13398288,84013.0,84012.0,0.7908282]
[1742028231062,0.13398288,84013.0,84012.0,1.2708282]
[1742028231368,0.13398288,84013.0,84012.0,0.7908282]
[1742028232870,0.01495608,84013.0,84012.0,0.7908282]
[1742028233463,0.13398288,84013.0,84012.0,0.7908282]
[1742028233666,0.01495608,84013.0,84012.0,0.8216282]
[1742028234271,0.0037208,84013.0,84012.0,0.8216282]
[1742028234465,0.0037208,84013.0,84012.0,1.0616282]
[1742028234772,0.1227476,84013.0,84012.0,1.0616282]
[1742028236775,0.0037208,84013.0,84012.0,1.0616282]
[1742028237076,0.1190263,84014.0,84013.0,0.1190268]
[1742028237274,0.1190263,84014.0,84013.0,0.3890268]
[1742028237472,0.0595113,84016.0,84013.0,0.4534268]
[1742028237776,0.11919436,84021.0,84020.0,0.1190169]
[1742028237961,0.11919436,84021.0,84020.0,0.3690169]
[1742028238161,0.33319996,84021.0,84020.0,0.3690169]
[1742028238364,0.36589996,84021.0,84020.0,0.4013169]
[1742028238564,0.36589996,84021.0,84020.0,0.4657169]
[1742028238962,0.11919436,84021.0,84020.0,0.4657169]
[1742028239167,0.2110158,84027.0,84023.0,0.0595059]
[1742028239362,0.2110158,84027.0,84026.0,0.1190084]
[1742028239675,0.0920046,84027.0,84026.0,0.3490084]
[1742028239982,0.2140056,84027.0,84026.0,0.6116084]
[1742028240273,0.2160056,84027.0,84026.0,0.6116084]
[1742028240669,0.3350125,84027.0,84026.0,0.4116084]
[1742028240870,0.2160056,84027.0,84026.0,0.4116084]
[1742028241378,0.3350125,84027.0,84026.0,0.4116084]
[1742028241676,0.2160056,84027.0,84026.0,0.4116084]
[1742028242777,0.2150056,84027.0,84026.0,0.4116084]
[1742028243567,0.3330125,84027.0,84026.0,0.4116084]
[1742028243867,0.3340125,84027.0,84026.0,0.4116084]
[1742028244065,0.001,84027.0,84026.0,0.6616084]
[1742028245162,0.1190051,84029.0,84028.0,0.1190055]
[1742028245367,0.1190051,84029.0,84028.0,0.3890055]
[1742028245570,0.3330107,84029.0,84028.0,0.3890055]
[1742028245773,0.2140056,84029.0,84028.0,0.3890055]
[1742028245973,0.1190041,84029.0,84028.0,0.3890055]
[1742028246178,0.1190041,84029.0,84028.0,0.8890055]
[1742028246375,0.001,84029.0,84028.0,0.8890055]
[1742028246579,0.2691037,84033.0,84032.0,0.1189999]
[1742028246777,0.2691037,84033.0,84032.0,0.7397999]
[1742028247078,0.2380037,84033.0,84032.0,0.7397999]
[1742028248271,0.2380037,84033.0,84032.0,0.9597999]
[1742028248583,0.2380037,84033.0,84032.0,0.97178067]
[1742028249474,0.2380037,84033.0,84032.0,0.75178067]
[1742028249771,0.4530093,84033.0,84032.0,0.39098067]
[1742028250088,0.4851093,84033.0,84032.0,0.75178067]
[1742028250285,0.5152093,84033.0,84032.0,0.75178067]
[1742028253479,0.5152093,84033.0,84032.0,0.63278077]
[1742028253679,0.5152093,84033.0,84032.0,0.27198077]
[1742028254079,0.5152093,84033.0,84032.0,0.39098067]
[1742028255786,0.5152093,84033.0,84032.0,0.27198077]
[1742028255980,0.5152093,84033.0,84032.0,0.39098067]
[1742028257984,0.5152093,84033.0,84032.0,0.75178067]
[1742028258391,0.5152093,84033.0,84032.0,0.39098067]
[1742028259279,0.5152093,84033.0,84032.0,0.42098067]
[1742028262177,0.5152093,84033.0,84032.0,0.78178067]
[1742028262487,0.5152093,84033.0,84032.0,0.42098067]
[1742028263082,0.3962052,84033.0,84032.0,1.02178067]
[1742028263575,0.1199984,84033.0,84032.0,1.25358067]
[1742028263985,0.00178556,84044.0,84037.0,0.0594957]
[1742028264188,0.2140056,84041.0,84040.0,0.1189885]
[1742028264487,0.2140056,84041.0,84040.0,0.4022885]
[1742028264792,0.1784841,84041.0,84040.0,0.521277]
[1742028265095,0.1784841,84041.0,84040.0,0.553377]
[1742028265290,0.2106841,84041.0,84040.0,0.553377]
[1742028266788,0.2106841,84041.0,84040.0,0.4343885]
[1742028267094,0.4246897,84041.0,84040.0,0.4343885]
[1742028268184,0.4246897,84041.0,84040.0,0.3154]
[1742028268388,0.4246897,84041.0,84040.0,0.4343885]
[1742028268690,0.4246897,84041.0,84040.0,0.3154]
[1742028268994,0.4246897,84041.0,84040.0,0.4343885]
[1742028275500,0.4246897,84041.0,84040.0,0.1843885]
[1742028279507,0.4246897,84041.0,84040.0,0.0654]
[1742028285204,0.4246897,84041.0,84040.0,0.1843885]
[1742028287713,0.1784793,84043.0,84042.0,0.1189857]
[1742028287916,0.3924849,84043.0,84042.0,0.3789857]
[1742028288103,0.3924849,84043.0,84042.0,0.4401857]
[1742028288411,0.1784793,84043.0,84042.0,0.4401857]
[1742028291115,0.0602436,84056.0,84049.0,0.0594873]
[1742028291415,0.2379433,84056.0,84055.0,0.1189673]
[1742028291615,0.118973,84051.0,84050.0,0.0648]
[1742028291812,0.3329786,84051.0,84050.0,0.0648]
[1742028292014,0.3965786,84051.0,84050.0,0.0648]
[1742028293119,0.1189814,84045.0,84044.0,0.00017846]
[1742028293305,0.332987,84045.0,84044.0,0.11017846]
[1742028293623,0.425787,84045.0,84044.0,0.11017846]
[1742028294712,0.425787,84045.0,84044.0,0.22916136]
[1742028295020,0.425787,84045.0,84044.0,0.11916136]
[1742028295921,0.425787,84045.0,84044.0,0.14986136]
[1742028296819,0.425787,84045.0,84044.0,0.06147846]
[1742028297020,0.425787,84045.0,84044.0,0.30147846]
[1742028297211,0.425787,84045.0,84044.0,0.06147846]
[1742028299822,0.1189984,84033.0,84032.0,0.13098007]
[1742028300023,0.1189984,84033.0,84032.0,0.3790999]
[1742028300225,0.1189984,84033.0,84032.0,0.39131488]
[1742028301120,0.1189984,84033.0,84032.0,0.42451488]
[1742028301327,0.333004,84033.0,84032.0,0.42451488]
[1742028301619,0.365204,84033.0,84032.0,0.30551498]
[1742028301819,0.365204,84033.0,84032.0,0.0633]
[1742028302323,0.511684,84033.0,84032.0,0.0633]
[1742028302519,0.1190098,84025.0,84024.0,0.21448293]
[1742028302722,0.6938154,84025.0,84024.0,0.21448293]
[1742028302926,0.9738154,84025.0,84024.0,0.21448293]
[1742028303126,0.6938154,84025.0,84024.0,0.00017846]
[1742028303309,0.94582197,84025.0,84024.0,0.00017846]
[1742028303721,0.70582197,84025.0,84024.0,0.00017846]
[1742028303924,0.73882197,84025.0,84024.0,0.00017846]
[1742028305426,0.74182197,84025.0,84024.0,0.00017846]
[1742028305625,1.35262197,84025.0,84024.0,0.00017846]
[1742028306228,0.1190169,84020.0,84019.0,0.0329]
[1742028306413,0.4483425,84020.0,84019.0,0.0329]
[1742028307128,0.5131425,84020.0,84019.0,0.0329]
[1742028307715,0.7831425,84020.0,84019.0,0.0329]
[1742028307922,0.5131425,84020.0,84019.0,0.0329]
[1742028309226,0.5161425,84020.0,84019.0,0.0329]
[1742028309915,0.5201425,84020.0,84019.0,0.0329]
[1742028311825,0.1190282,84012.0,84011.0,0.00017846]
[1742028312020,0.3330338,84012.0,84011.0,0.00017846]
[1742028312921,0.3970338,84012.0,84011.0,0.00017846]
[1742028313119,0.4000338,84012.0,84011.0,0.00017846]
[1742028314633,0.4040338,84012.0,84011.0,0.00017846]
[1742028314933,0.41630111,84012.0,84011.0,0.00017846]
[1742028317937,0.0595197,84005.0,83998.0,0.0302]
[1742028318132,0.1190466,83999.0,83998.0,0.2102]
[1742028318637,0.1845466,83999.0,83998.0,0.2102]
[1742028321937,0.1865466,83999.0,83998.0,0.2102]
[1742028322238,0.1865466,83999.0,83998.0,0.0302]
[1742028322640,0.1885466,83999.0,83998.0,0.149248]
[1742028323233,0.4025522,83999.0,83998.0,0.0302]
[1742028323434,0.1190494,83997.0,83996.0,0.0304]
[1742028323743,0.333055,83997.0,83996.0,0.0304]
[1742028324044,0.394655,83997.0,83996.0,0.0304]
[1742028324233,0.40665932,83997.0,83996.0,0.0304]
[1742028324937,0.394655,83997.0,83996.0,0.0304]
[1742028325158,0.396655,83997.0,83996.0,0.0304]
[1742028326929,0.396655,83997.0,83996.0,0.0622]
[1742028330742,0.396655,83997.0,83990.0,0.00017856]
[1742028330743,0.1190579,83991.0,83990.0,0.00017856]
[1742028331057,0.8091835,83991.0,83990.0,0.24017856]
[1742028331234,0.8731835,83991.0,83990.0,0.00017856]
[1742028331746,0.8731835,83991.0,83990.0,0.06217856]
[1742028335653,0.8731835,83991.0,83990.0,0.03217856]
[1742028336947,0.6591779,83991.0,83990.0,0.06217856]
[1742028337154,0.8731835,83991.0,83990.0,0.06217856]
[1742028338351,0.5123835,83991.0,83990.0,0.06217856]
[1742028339454,0.8731835,83991.0,83990.0,0.06217856]
[1742028343247,0.8731835,83991.0,83990.0,0.03217856]
[1742028346653,0.1190679,83984.0,83983.0,0.031]
[1742028346852,0.1190679,83984.0,83983.0,0.301]
[1742028347152,0.1821679,83984.0,83983.0,0.301]
[1742028347668,0.3961735,83984.0,83983.0,0.301]
[1742028347853,0.3961735,83984.0,83983.0,0.303]
[1742028349657,0.3961735,83984.0,83983.0,0.305]
[1742028351045,0.3961735,83984.0,83983.0,0.415]
[1742028351247,0.0307,83984.0,83983.0,0.5340693]
[1742028351556,0.0595332,83986.0,83985.0,0.0595325]
[1742028351759,0.0595332,83986.0,83985.0,0.8851325]
[1742028352558,0.1786011,83986.0,83985.0,0.3951325]
[1742028352759,0.1786011,83986.0,83985.0,0.6171325]
[1742028352960,0.1786011,83986.0,83985.0,0.6181325]
[1742028353261,0.2108011,83986.0,83985.0,0.6181325]
[1742028355055,0.2108011,83986.0,83985.0,0.9789325]
[1742028363161,0.2108011,83986.0,83985.0,0.8689325]
[1742028365763,0.0595264,83995.0,83994.0,0.1190537]
[1742028366069,0.0595158,84010.0,83994.0,0.1190537]
[1742028366070,0.1785759,83997.0,83996.0,0.1190494]
[1742028366266,0.1785759,83997.0,83996.0,0.86281315]
[1742028366467,0.2428759,83997.0,83996.0,0.89531315]
[1742028367671,0.2438759,83997.0,83996.0,0.89531315]
[1742028369357,0.2448759,83997.0,83996.0,0.89531315]
[1742028369759,0.2448759,83997.0,83996.0,0.43531315]
[1742028369962,0.2448759,83997.0,83996.0,0.90531315]
[1742028370466,0.2448759,83997.0,83996.0,0.43531315]
[1742028373571,0.2448759,83997.0,83996.0,0.91531315]
[1742028375365,0.1258254,83997.0,83996.0,0.92531315]
[1742028377158,0.1258254,83997.0,83996.0,0.94531315]
[1742028378572,0.1258254,83997.0,83996.0,0.40351315]
[1742028378874,0.1565254,83997.0,83996.0,0.25196375]
[1742028379064,0.1565254,83997.0,83996.0,0.37101465]
[1742028379862,0.370531,83997.0,83996.0,0.13101465]
[1742028380172,0.370531,83997.0,83996.0,0.35101465]
[1742028382270,0.370531,83997.0,83996.0,0.23196375]
[1742028382465,0.119065,83987.0,83986.0,0.059532]
[1742028382675,0.119065,83987.0,83986.0,0.361732]
[1742028383072,0.3330706,83987.0,83986.0,0.27]
[1742028383267,0.3969706,83987.0,83986.0,0.27]
[1742028383472,0.1190664,83985.0,83980.0,0.28410499]
[1742028383674,0.1190679,83984.0,83983.0,0.21430447]
[1742028383981,0.1829679,83984.0,83983.0,0.21430447]
[1742028384276,0.3959735,83984.0,83983.0,0.21430447]
[1742028385073,0.3959735,83984.0,83983.0,0.58337377]
[1742028385277,0.3959735,83984.0,83983.0,0.33337377]
[1742028385477,0.3959735,83984.0,83983.0,0.33537377]
[1742028386377,0.3939735,83984.0,83983.0,0.33537377]
[1742028386770,0.3939735,83984.0,83983.0,0.1210693]
[1742028387278,0.3939735,83984.0,83983.0,0.1230693]
[1742028389268,0.3939735,83984.0,83983.0,0.004]
[1742028389879,0.3939735,83984.0,83983.0,0.1230693]
[1742028390981,0.3939735,83984.0,83983.0,0.004]
[1742028399580,0.1190792,83976.0,83975.0,0.00017856]
[1742028399879,0.3330848,83976.0,83975.0,0.00017856]
[1742028400080,0.3973848,83976.0,83975.0,0.00017856]
[1742028401781,0.3973848,83976.0,83975.0,0.00417856]
[1742028402085,0.3973848,83976.0,83975.0,0.00817856]
[1742028405689,0.1786606,83958.0,83957.0,0.1191049]
[1742028405876,0.1786606,83958.0,83957.0,0.3691049]
[1742028407281,0.1786606,83958.0,83957.0,0.3809375]
[1742028407483,0.1786606,83958.0,83957.0,0.9616375]
[1742028407679,0.1786606,83958.0,83957.0,0.4416375]
[1742028408184,0.1786606,83958.0,83957.0,0.4216375]
[1742028410584,0.1786606,83958.0,83957.0,0.9316375]
[1742028410888,0.1786606,83958.0,83957.0,0.6816375]
[1742028412985,0.1786606,83958.0,83957.0,0.4216375]
[1742028413483,0.1806606,83958.0,83957.0,0.4216375]
[1742028422489,0.1806606,83958.0,83957.0,0.3025326]
[1742028422701,0.1806606,83958.0,83957.0,0.4216388]
[1742028431101,0.1796606,83958.0,83957.0,0.4216388]
[1742028431305,0.1806606,83958.0,83957.0,0.4216388]
[1742028431602,0.1796606,83958.0,83957.0,0.4216388]
[1742028431798,0.1806606,83958.0,83957.0,0.4216388]
[1742028433097,0.1806606,83958.0,83957.0,0.0118326]
[1742028433400,0.119109,83955.0,83954.0,0.33341367]
[1742028433592,0.119109,83955.0,83954.0,0.45341367]
[1742028433992,0.119109,83955.0,83954.0,0.33430447]
[1742028434300,0.119109,83955.0,83954.0,0.34305651]
[1742028434702,0.119109,83955.0,83954.0,0.35495424]
[1742028435300,0.119109,83955.0,83954.0,0.3462022]
[1742028435496,0.119109,83955.0,83954.0,0.13189773]
[1742028435799,0.3341146,83955.0,83954.0,0.13189773]
[1742028436099,0.1786733,83952.0,83951.0,0.1191146]
[1742028436287,0.3926789,83952.0,83951.0,0.3491146]
[1742028436492,0.4564789,83952.0,83951.0,0.3491146]
[1742028436797,0.4564789,83952.0,83951.0,0.23]
[1742028437397,0.4564789,83952.0,83951.0,0.24214708]
[1742028438994,0.3373628,83952.0,83951.0,0.88126178]
[1742028439193,0.1233572,83952.0,83951.0,0.88126178]
[1742028439803,0.1233572,83952.0,83951.0,0.94256178]
[1742028445494,0.1233572,83952.0,83951.0,0.42256178]
[1742028445801,0.1233572,83952.0,83951.0,0.87256178]
[1742028446202,0.1233572,83952.0,83951.0,0.42256178]
[1742028448304,0.1233572,83952.0,83951.0,0.97256178]
[1742028448510,0.1233572,83952.0,83951.0,0.42256178]
[1742028448807,0.1233572,83952.0,83951.0,0.94256178]
[1742028449504,0.1233572,83952.0,83951.0,0.78256178]
[1742028450709,0.1233572,83952.0,83951.0,0.93256178]
[1742028453206,0.1233572,83952.0,83951.0,0.67256178]
[1742028453411,0.1233572,83952.0,83951.0,0.95256178]
[1742028456208,0.1233572,83952.0,83951.0,0.67256178]
[1742028456410,0.1233572,83952.0,83951.0,0.94256178]
[1742028464315,0.3373628,83952.0,83951.0,0.24214708]
[1742028464517,0.3673628,83952.0,83951.0,0.36126178]
[1742028468517,0.3673628,83952.0,83951.0,0.24214708]
[1742028470016,0.3673628,83952.0,83951.0,0.24214708]
[1742028471507,0.3673628,83952.0,83951.0,0.85126178]
[1742028471710,0.3373628,83952.0,83951.0,0.85126178]
[1742028472117,0.3373628,83952.0,83951.0,0.91586178]
[1742028473121,0.3373628,83952.0,83951.0,0.39456178]
[1742028473322,0.3373628,83952.0,83951.0,0.36126178]
[1742028474315,0.3373628,83952.0,83951.0,0.24214708]
[1742028480032,0.1191161,83950.0,83949.0,0.00017856]
[1742028480214,0.3331217,83950.0,83949.0,0.00017856]
[1742028480524,0.4283217,83950.0,83949.0,0.00017856]
[1742028481128,0.44027228,83950.0,83949.0,0.00017856]
[1742028481626,0.44027228,83950.0,83949.0,0.00117856]
[1742028482519,0.4283217,83950.0,83949.0,0.00217856]
[1742028483920,0.4283217,83950.0,83949.0,0.00117856]
[1742028484224,0.4293217,83950.0,83949.0,0.00117856]
[1742028484926,0.4293217,83950.0,83949.0,0.00017856]
[1742028485116,0.4303217,83950.0,83949.0,0.00017856]
[1742028485924,0.4303217,83950.0,83949.0,0.62249606]
[1742028486129,0.3988217,83950.0,83949.0,0.76329606]
[1742028486313,0.3988217,83950.0,83949.0,0.29417856]
[1742028486519,0.3988217,83950.0,83949.0,0.41329606]
[1742028488417,0.3988217,83950.0,83949.0,0.29417856]
[1742028489132,0.3988217,83950.0,83949.0,0.41329606]
[1742028490316,0.3988217,83950.0,83949.0,0.29417856]
[1742028490721,0.3988217,83950.0,83949.0,0.41329606]
[1742028491330,0.3988217,83950.0,83949.0,0.29417856]
[1742028495431,0.3988217,83950.0,83949.0,0.41329606]
[1742028497926,0.3988217,83950.0,83949.0,0.29417856]
[1742028499939,0.3988217,83950.0,83949.0,0.41329606]
[1742028500935,0.3988217,83950.0,83949.0,0.29417856]
[1742028505836,0.3988217,83950.0,83949.0,0.13337856]
[1742028506041,0.3988217,83950.0,83949.0,0.57017856]
[1742028506341,0.4306217,83950.0,83949.0,0.10017856]
[1742028510838,0.4306217,83950.0,83949.0,0.00017856]
[1742028511042,0.1191303,83940.0,83939.0,0.094]
[1742028511238,0.1191303,83940.0,83939.0,0.664]
[1742028511445,0.1840303,83940.0,83939.0,0.664]
[1742028512139,0.1840303,83940.0,83939.0,0.666]
[1742028512929,0.1840303,83940.0,83939.0,0.668]
[1742028513148,0.1840303,83940.0,83939.0,0.7871317]
[1742028514040,0.1840303,83940.0,83939.0,0.3478]
[1742028514246,0.1840303,83940.0,83939.0,0.3792]
[1742028514446,0.1840303,83940.0,83939.0,0.4983317]
[1742028514645,0.1840303,83940.0,83939.0,0.4669317]
[1742028517437,0.1840303,83940.0,83939.0,0.4982317]
[1742028525156,0.1840303,83940.0,83939.0,0.9882317]
[1742028525350,0.1840303,83940.0,83939.0,0.8282317]
[1742028529964,0.1840303,83940.0,83939.0,0.7782317]
[1742028542667,0.1840303,83940.0,83939.0,1.0582317]
[1742028546473,0.1840303,83940.0,83939.0,0.7882317]
[1742028549379,0.1840303,83940.0,83939.0,1.0382317]
[1742028549568,0.1840303,83940.0,83939.0,0.7882317]
[1742028549770,0.1840303,83940.0,83939.0,1.4190317]
[1742028549967,0.1840303,83940.0,83939.0,1.1490317]
[1742028550382,0.00076,83962.0,83952.0,0.059554]
[1742028550582,0.3608,83974.0,83952.0,0.059554]
[1742028550583,0.1786691,83955.0,83954.0,0.119103]
[1742028550881,0.1786691,83955.0,83954.0,1.033403]
[1742028551080,0.2432691,83955.0,83954.0,1.033403]
[1742028551685,0.2432691,83955.0,83954.0,1.1525062]
[1742028551984,0.2432691,83955.0,83954.0,1.16456508]
[1742028552279,0.2452691,83955.0,83954.0,1.16456508]
[1742028553380,0.1281552,83955.0,83954.0,1.16456508]
[1742028554174,0.0686,83955.0,83954.0,1.52536508]
[1742028554377,0.187709,83955.0,83954.0,1.52536508]
[1742028569002,0.187709,83955.0,83954.0,0.98536508]
[1742028569202,0.187709,83955.0,83954.0,1.49536508]
[1742028580416,0.187709,83955.0,83954.0,1.37626188]
[1742028582016,0.187709,83955.0,83954.0,1.34436188]
[1742028582214,0.220109,83955.0,83954.0,1.34436188]
[1742028586520,0.220109,83955.0,83954.0,1.37696188]
[1742028587726,0.187709,83955.0,83954.0,1.37696188]
[1742028600634,0.187709,83955.0,83954.0,1.13696188]
[1742028605639,0.187709,83955.0,83954.0,1.10436188]
[1742028606544,0.187709,83955.0,83954.0,1.13586188]
[1742028609143,0.187709,83955.0,83954.0,1.10436188]
[1742028610136,0.187709,83955.0,83954.0,1.13466188]
[1742028617947,0.187709,83955.0,83954.0,1.33466188]
[1742028618250,0.1786581,83960.0,83959.0,0.1786514]
[1742028618451,0.1786581,83960.0,83959.0,0.5286514]
[1742028618751,0.3926637,83960.0,83959.0,0.5286514]
[1742028619648,0.3956637,83960.0,83959.0,0.5286514]
[1742028621562,0.3986637,83960.0,83959.0,0.5286514]
[1742028621745,0.4638637,83960.0,83959.0,0.5286514]
[1742028621944,0.2498581,83960.0,83959.0,0.5286514]
[1742028622251,0.2498581,83960.0,83959.0,0.7486514]
[1742028628447,0.130751,83960.0,83959.0,0.7486514]
[1742028628643,0.00076,83983.0,83970.0,0.1786301]
[1742028628858,0.059532,83987.0,83970.0,0.1786301]
[1742028628859,0.06133003,83972.0,83971.0,0.0311]
[1742028629063,0.27533563,83972.0,83971.0,0.9001863]
[1742028629956,0.33873563,83972.0,83971.0,0.9001863]
[1742028630457,0.34373563,83972.0,83971.0,0.9001863]
[1742028630851,0.34873563,83972.0,83971.0,0.9001863]
[1742028631143,0.34873563,83972.0,83971.0,0.91205142]
[1742028631947,0.34373563,83972.0,83971.0,0.91205142]
[1742028632148,0.34873563,83972.0,83971.0,0.91305142]
[1742028633859,0.34873563,83972.0,83971.0,0.62305142]
[1742028635154,0.34873563,83972.0,83971.0,0.65395142]
[1742028640657,0.34873563,83972.0,83971.0,0.43395142]
[1742028647566,0.3469487,83972.0,83971.0,0.43395142]
[1742028652175,0.1329431,83972.0,83971.0,0.43395142]
[1742028652475,0.0734,83972.0,83971.0,0.43395142]
[1742028652665,0.1924849,83972.0,83971.0,0.71395142]
[1742028652866,0.1924849,83972.0,83971.0,0.94395142]
[1742028654881,0.0734,83972.0,83971.0,0.94395142]
[1742028655179,0.0402,83972.0,83971.0,0.94395142]
[1742028655375,0.1513785,83977.0,83976.0,0.1190792]
[1742028655571,0.2140056,83978.0,83977.0,0.1190778]